fUSD/lending_fUSD_20250101
["ID","MTS","AMOUNT","RATE_DAILY","PERIOD"]
[347339102,1735705106588,150.0,0.00010956,2]
[347339103,1735705106641,150.0,0.00010782,2]
[347339104,1735705106680,150.0,0.00010859,2]
[347339105,1735705106747,150.0,0.00010806,2]
[347339106,1735705106782,150.0,0.00010972,2]
[347339107,1735705106820,150.0,0.00010847,2]
[347339108,1735705106865,150.0,0.00010823,2]
[347339109,1735705106909,150.0,0.00010802,2]
[347339110,1735705106946,150.0,0.00010859,2]
[347339111,1735705106984,150.0,0.00010958,2]
[347339112,1735705107058,150.0,0.00010981,2]
[347339113,1735705107106,150.0,0.00010875,2]
[347339114,1735705107158,150.0,0.00010815,2]
[347339115,1735705107213,150.0,0.00010785,2]
[347339116,1735705107264,150.0,0.00010861,2]
[347339117,1735705107338,150.0,0.00010956,2]
[347339118,1735705107403,150.0,0.00010999,2]
[347339119,1735705107546,150.0,0.00010998,2]
[347339120,1735705107612,150.0,0.00010851,2]
[347339121,1735705107685,150.0,0.00010831,2]
[347339122,1735705107739,150.0,0.00010924,2]
[347339123,1735705108102,150.0,0.00010893,2]
[347339124,1735705108183,150.0,0.00010892,2]
[347339125,1735705108238,150.0,0.00010956,2]
[347339126,1735705108311,150.0,0.00010807,2]
[347339127,1735705108366,150.0,0.0001078,2]
[347339128,1735705116026,1500.0,0.00010958,2]
[347339129,1735705116060,150.0,0.00010974,2]
[347339130,1735705116094,1500.0,0.00010814,2]
[347339131,1735705116148,150.0,0.00010908,2]
[347339132,1735705161859,250.0,0.00010046,2]
[347339133,1735705192446,30000.0,0.0001,2]
[347339134,1735705199287,180.12,0.00010046,2]
[347339135,1735705210591,387.51623,0.0001094,2]
[347339136,1735705228004,40000.0,0.00010532,2]
[347339137,1735705271364,-150.0,0.00011013,2]
[347339138,1735705271390,-150.0,0.00011015,2]
[347339139,1735705271415,-150.0,0.00011017,2]
[347339140,1735705271443,-150.0,0.00011017,2]
[347339141,1735705271764,-150.0,0.00011017,2]
[347339142,1735705271792,-150.0,0.00011017,2]
[347339143,1735705271821,-150.0,0.00011019,2]
[347339144,1735705271848,-150.0,0.00011019,2]
[347339145,1735705271874,-150.0,0.00011019,2]
[347339146,1735705271900,-150.0,0.00011022,2]
[347339147,1735705271926,-150.0,0.00011023,2]
[347339148,1735705271952,-150.0,0.00011024,2]
[347339149,1735705271977,-150.0,0.00011025,2]
[347339150,1735705272003,-150.0,0.00011029,2]
[347339151,1735705272029,-150.0,0.00011029,2]
[347339152,1735705272054,-150.0,0.00011031,2]
[347339153,1735705272080,-150.0,0.00011032,2]
[347339154,1735705272106,-150.0,0.00011034,2]
[347339155,1735705272132,-150.0,0.00011035,2]
[347339156,1735705272158,-150.0,0.00011036,2]
[347339157,1735705272184,-1500.0,0.00011037,2]
[347339158,1735705272211,-150.0,0.00011038,2]
[347339159,1735705272237,-150.0,0.00011038,2]
[347339160,1735705272263,-168.43,0.00011038,2]
[347339161,1735705272288,-4236.007,0.00011038,2]
[347339162,1735705272315,-150.0,0.00011039,2]
[347339163,1735705272339,-3645.563,0.00011039,2]
[347339164,1735705337709,250.96827228,0.00010953,2]
[347339165,1735705407078,150.0,0.00010818,2]
[347339166,1735705407131,150.0,0.00010963,2]
[347339167,1735705407193,150.0,0.00010896,2]
[347339168,1735705407248,150.0,0.00010874,2]
[347339169,1735705407309,150.0,0.00010829,2]
[347339170,1735705457479,150.0,0.00010921,2]
[347339171,1735705458219,150.0,0.00010928,2]
[347339172,1735705474326,1000.0,0.00010128,2]
[347339173,1735705504182,235.22600485,0.00010128,30]
[347339174,1735705526425,150.0,0.00010943,2]
[347339175,1735705526471,150.0,0.00011009,2]
[347339176,1735705526518,150.0,0.00010881,2]
[347339177,1735705534132,150.0,0.0001091,2]
[347339178,1735705582208,159.569,0.0001076,2]
[347339179,1735705610670,322.93019,0.0001094,2]
[347339180,1735705664897,651.25454353,0.0001,2]
[347339181,1735705695610,160.34,0.00010137,2]
[347339183,1735705701517,562.85,8.219e-05,2]
[347339184,1735705701710,562.85,0.00010483,2]
[347339186,1735705767089,150.0,0.00010788,2]
[347339187,1735705767127,150.0,0.00010981,2]
[347339199,1735705832831,-150.0,0.00011015,2]
[347339200,1735705832841,-200.0,0.00011039,2]
[347339201,1735705832852,-503.78,0.00011045,2]
[347339202,1735705832862,-500.71,0.00011046,2]
[347339203,1735705832872,-504.24,0.00011048,2]
[347339204,1735705832882,-300.0,0.00011048,2]
[347339205,1735705832892,-1824.5,0.00011049,2]
[347339206,1735705832901,-1043.15,0.00011049,2]
[347339207,1735705832911,-1012.86515316,0.00011049,2]
[347339208,1735705832925,-3075.65484684,0.00011049,2]
[347339209,1735705832934,-4897.02,0.00011049,2]
[347339210,1735705832947,-706.03,0.00011049,2]
[347339211,1735705832957,-2028.11227284,0.00011049,2]
[347339212,1735705833021,-102.88772716,0.00011049,2]
[347339213,1735705833033,-352.03756503,0.00011049,2]
[347339214,1735705833049,-3314.46243497,0.00011049,2]
[347339215,1735705833060,-2268.42007612,0.00011049,2]
[347339216,1735705833073,-1332.92992388,0.00011049,2]
[347339217,1735705833084,-536.8075143,0.00011049,2]
[347339218,1735705833136,-274.11960328,0.00011049,2]
[347339219,1735705833171,-2939.52,0.00011049,2]
[347339223,1735705836812,6552.9271,0.0001095,2]
[347339259,1735705839946,-3585.13288242,0.00011049,2]
[347339260,1735705839956,-3213.73,0.00011049,2]
[347339261,1735705839967,-8528.39,0.00011049,2]
[347339262,1735705839978,-28878.09,0.00011049,2]
[347339263,1735705839987,-5489.48,0.00011049,2]
[347339264,1735705839997,-3111.12,0.00011049,2]
[347339265,1735705840007,-5522.83,0.00011049,2]
[347339266,1735705840017,-1533.39,0.00011049,2]
[347339267,1735705840026,-749.46,0.00011049,2]
[347339268,1735705840035,-2452.99,0.00011049,2]
[347339269,1735705840045,-3255.88,0.00011049,2]
[347339270,1735705840054,-5271.92,0.00011049,2]
[347339271,1735705840064,-14353.51,0.00011049,2]
[347339272,1735705840074,-6804.57,0.00011049,2]
[347339273,1735705840083,-12087.34,0.00011049,2]
[347339274,1735705840093,-3961.98,0.00011049,2]
[347339275,1735705840103,-17875.59,0.00011049,2]
[347339276,1735705840113,-3634.1,0.00011049,2]
[347339277,1735705840123,-500.0,0.00011049,2]
[347339278,1735705840134,-4315.62,0.00011049,2]
[347339279,1735705840143,-5764.96,0.00011049,2]
[347339280,1735705840153,-500.0,0.00011049,2]
[347339281,1735705840163,-1085.52,0.00011049,2]
[347339282,1735705840174,-500.0,0.00011049,2]
[347339283,1735705840183,-755.29,0.00011049,2]
[347339284,1735705840192,-1650.68,0.00011049,2]
[347339285,1735705840201,-1785.7,0.00011049,2]
[347339286,1735705840211,-1656.11,0.00011049,2]
[347339287,1735705840221,-1169.57,0.00011049,2]
[347339288,1735705840230,-1846.8,0.00011049,2]
[347339290,1735705840240,-4481.4,0.00011049,2]
[347339292,1735705840249,-373.02511566,0.00011049,2]
[347339293,1735705840258,-709.75,0.00011049,2]
[347339294,1735705840267,-500.0,0.0001105,2]
[347339295,1735705840277,-3122.57,0.0001105,2]
[347339296,1735705840286,-500.0,0.0001105,2]
[347339297,1735705840296,-2986.49,0.0001105,2]
[347339298,1735705840305,-1116.55,0.0001105,2]
[347339299,1735705840314,-474.75905447,0.0001105,2]
[347339300,1735705840324,-712.01,0.0001105,2]
[347339301,1735705840334,-2655.8,0.0001105,2]
[347339302,1735705840343,-500.0,0.0001105,2]
[347339303,1735705840353,-500.0,0.0001105,2]
[347339304,1735705840362,-1151.53,0.0001105,2]
[347339305,1735705840372,-755.2,0.0001105,2]
[347339306,1735705840382,-500.0,0.0001105,2]
[347339307,1735705840391,-500.0,0.0001105,2]
[347339308,1735705840400,-786.0,0.0001105,2]
[347339309,1735705840410,-1149.98,0.0001105,2]
[347339310,1735705840419,-500.0,0.0001105,2]
[347339311,1735705840432,-2935.32,0.0001105,2]
[347339312,1735705840442,-500.0,0.0001105,2]
[347339313,1735705840452,-500.0,0.0001105,2]
[347339314,1735705840462,-2183.24,0.0001105,2]
[347339315,1735705840472,-500.0,0.0001105,2]
[347339316,1735705840481,-500.0,0.0001105,2]
[347339317,1735705840490,-2108.2,0.0001105,2]
[347339318,1735705840500,-500.0,0.0001105,2]
[347339319,1735705840509,-310.15996992,0.0001105,2]
[347339320,1735705840551,-530.69259837,0.0001105,2]
[347339331,1735705846044,-500.0,0.00011049,2]
[347339332,1735705846054,-981.60003652,0.00011049,2]
[347339333,1735705846066,-7131.89996348,0.00011049,2]
[347339334,1735705846075,-3160.74,0.00011049,2]
[347339335,1735705846085,-2519.91743171,0.0001105,2]
[347339336,1735705846095,-500.0,0.0001105,2]
[347339337,1735705846106,-1510.61,0.0001105,2]
[347339338,1735705846115,-2047.8,0.0001105,2]
[347339339,1735705846125,-437.03309126,0.0001105,2]
[347339340,1735705846134,-500.0,0.0001105,2]
[347339341,1735705846144,-500.0,0.0001105,2]
[347339342,1735705846154,-655.75,0.0001105,2]
[347339343,1735705846163,-500.0,0.0001105,2]
[347339344,1735705846173,-2889.63,0.0001105,2]
[347339345,1735705846189,-500.0,0.0001105,2]
[347339346,1735705846199,-1509.8,0.0001105,2]
[347339347,1735705846209,-500.0,0.0001105,2]
[347339348,1735705846218,-823.01,0.0001105,2]
[347339349,1735705846228,-500.0,0.0001105,2]
[347339350,1735705846237,-1554.06,0.0001105,2]
[347339351,1735705846247,-500.0,0.0001105,2]
[347339352,1735705846257,-500.0,0.0001105,2]
[347339353,1735705846267,-500.0,0.0001105,2]
[347339354,1735705846276,-3995.67,0.0001105,2]
[347339355,1735705846285,-500.0,0.0001105,2]
[347339356,1735705846295,-500.0,0.0001105,2]
[347339357,1735705846304,-757.9,0.0001105,2]
[347339358,1735705846315,-627.74,0.0001105,2]
[347339359,1735705846324,-500.0,0.0001105,2]
[347339360,1735705846334,-3502.75,0.0001105,2]
[347339361,1735705846344,-500.0,0.0001105,2]
[347339362,1735705846353,-8743.25,0.0001105,2]
[347339363,1735705846363,-500.0,0.0001105,2]
[347339364,1735705846372,-940.52,0.0001105,2]
[347339365,1735705846381,-500.0,0.0001105,2]
[347339366,1735705846391,-2199.04,0.0001105,2]
[347339367,1735705846400,-500.0,0.0001105,2]
[347339368,1735705846410,-500.0,0.0001105,2]
[347339369,1735705846419,-3500.06,0.0001105,2]
[347339370,1735705846431,-2742.9254796,0.0001105,2]
[347339371,1735705846494,-2601.2645204,0.0001105,2]
[347339372,1735705846504,-646.87,0.0001105,2]
[347339373,1735705846514,-399.96434005,0.0001105,2]
[347339374,1735705846525,-838.30565995,0.0001105,2]
[347339375,1735705846535,-464.14794537,0.0001105,2]
[347339376,1735705846545,-654.68,0.0001105,2]
[347339377,1735705846554,-500.0,0.0001105,2]
[347339378,1735705846564,-947.76639468,0.0001105,2]
[347339379,1735705848010,152.216106,0.00014887,24]
[347339380,1735705857475,2521.3158,0.0001095,2]
[347339381,1735705868834,500.0,0.0001095,2]
[347339382,1735705869145,1300.0,0.000105,3]
[347339383,1735705871261,2600.0,0.000106,3]
[347339384,1735705873361,3900.0,0.000107,3]
[347339385,1735705876294,5200.0,0.000108,3]
[347339386,1735705878010,6500.0,0.000109,3]
[347339387,1735705891635,241482.0,0.0001094,2]
[347339388,1735705899145,247.539,0.0001051,2]
[347339389,1735705913200,6593.106,0.00010949,2]
[347339390,1735705931558,745.43,0.00010126,2]
[347339391,1735705933892,94865.3828,0.0001095,2]
[347339392,1735705947190,1423.25480844,0.00010949,2]
[347339393,1735705950659,183.83,0.00010129,2]
[347339394,1735705968218,1000.0,0.0001095,2]
[347339395,1735705980917,2500.0,0.0001095,2]
[347339396,1735706001631,269.10849,0.0001094,2]
[347339397,1735706005202,1913.21,0.00010213,2]
[347339398,1735706020653,387.77,0.00010121,2]
[347339399,1735706030414,500.0,9.78e-05,2]
[347339400,1735706031118,250.0,0.00010122,2]
[347339401,1735706045519,1200.0,9.78e-05,2]
[347339402,1735706050705,2800.0,0.00010876,2]
[347339403,1735706166272,167.24,0.00010105,2]
[347339404,1735706221928,300.0,0.00011012,2]
[347339405,1735706247705,581.80405857,0.00010898,2]
[347339406,1735706280251,45520.8351,0.00010949,2]
[347339407,1735706303653,622.39,0.00010112,2]
[347339408,1735706314080,386.38,0.0001012,2]
[347339409,1735706314323,386.38,0.00010122,2]
[347339410,1735706314532,386.38,0.00010125,2]
[347339411,1735706314821,386.38,0.00010128,2]
[347339412,1735706315069,386.38,0.0001013,2]
[347339413,1735706315233,386.38,0.00010133,2]
[347339414,1735706315459,386.38,0.00010136,2]
[347339415,1735706315672,386.38,0.00010138,2]
[347339416,1735706315896,386.38,0.00010141,2]
[347339417,1735706316069,386.38,0.00010144,2]
[347339418,1735706316311,386.38,0.00010146,2]
[347339419,1735706316514,386.38,0.00010149,2]
[347339420,1735706316711,386.38,0.00010151,2]
[347339421,1735706316921,386.38,0.00010154,2]
[347339422,1735706317132,386.38,0.00010157,2]
[347339423,1735706317335,386.38,0.00010159,2]
[347339424,1735706317523,386.38,0.00010162,2]
[347339425,1735706317730,386.38,0.00010165,2]
[347339426,1735706318222,386.38,0.00010167,2]
[347339427,1735706318309,386.38,0.0001017,2]
[347339428,1735706329982,3846.9581,0.00010949,2]
[347339429,1735706341228,300.0,0.00011012,2]
[347339430,1735706347078,1250.19,0.00010112,2]
[347339431,1735706393946,224.25708,0.0001094,2]
[347339432,1735706461770,300.0,0.00011012,2]
[347339433,1735706482507,1000.0,0.00010141,2]
[347339434,1735706483591,98551.82545647,0.0001098,2]
[347339435,1735706503766,183.69,0.00010445,2]
[347339436,1735706545629,237.278,0.0001051,2]
[347339437,1735706546891,560.16,8.219e-05,2]
[347339438,1735706547104,560.16,0.00010483,2]
[347339439,1735706549608,188.9,0.00010137,2]
[347339441,1735706568330,39535.94,0.00010115,2]
[347339442,1735706637475,1186.0456737,0.00010948,2]
[347339443,1735706641250,300.0,0.00011012,2]
[347339444,1735706643112,215.11566192,0.00010949,2]
[347339446,1735706702527,300.0,0.00011012,2]
[347339447,1735706702680,150.0,0.00010677,2]
[347339448,1735706703380,150.0,0.00010746,2]
[347339449,1735706704206,150.0,0.00010816,2]
[347339450,1735706704287,150.0,0.00010886,2]
[347339451,1735706704552,150.0,0.00010956,2]
[347339452,1735706710514,150.0,0.00010677,2]
[347339453,1735706710844,150.0,0.00010809,2]
[347339454,1735706711162,150.0,0.0001094,2]
[347339455,1735706717236,3182.92,0.00010166,2]
[347339456,1735706722176,150.0,0.00010677,2]
[347339457,1735706722506,150.0,0.00010768,2]
[347339458,1735706722823,150.0,0.00010859,2]
[347339459,1735706723365,150.0,0.0001095,2]
[347339460,1735706743756,150.00000001,0.00010677,2]
[347339461,1735706785526,186.8809,0.0001094,2]
[347339462,1735706796449,23900.0,0.00010069,2]
[347339463,1735706818537,824.86,0.00010069,2]
[347339464,1735706821473,300.0,0.00011012,2]
[347339465,1735706829333,300.0,0.000105,3]
[347339466,1735706831354,600.0,0.000106,3]
[347339467,1735706834646,1000.0,0.000107,3]
[347339468,1735706835672,1300.0,0.000108,3]
[347339469,1735706837726,1600.0,0.000109,3]
[347339470,1735706881897,300.0,0.00011012,2]
[347339505,1735706907635,250.0,0.00010065,2]
[347339506,1735706935077,212.52,0.00010959,2]
[347339507,1735707030068,988.37139475,0.00010947,2]
[347339510,1735707032268,-1057.0,0.00011013,2]
[347339511,1735707032280,-1057.0,0.00011013,2]
[347339512,1735707032289,-102.7,0.00011013,2]
[347339513,1735707032357,-954.3,0.00011013,2]
[347339514,1735707032367,-1057.0,0.00011013,2]
[347339515,1735707032379,-1057.0,0.00011013,2]
[347339516,1735707032389,-150.0,0.00011014,2]
[347339517,1735707032399,-150.0,0.00011026,2]
[347339518,1735707032409,-150.0,0.00011042,2]
[347339519,1735707032421,-1086.50889335,0.00011046,2]
[347339520,1735707032431,-500.0,0.00011047,2]
[347339521,1735707032443,-500.0,0.00011047,2]
[347339522,1735707032455,-987.55,0.00011047,2]
[347339523,1735707032465,-723.82,0.00011047,2]
[347339524,1735707032475,-1040.29,0.00011047,2]
[347339525,1735707032486,-1120.84,0.00011047,2]
[347339526,1735707032496,-680.18,0.00011047,2]
[347339527,1735707032507,-978.79617715,0.00011047,2]
[347339528,1735707032525,-732.50382285,0.00011047,2]
[347339529,1735707032539,-338.19617715,0.00011047,2]
[347339530,1735707032580,-168.90382285,0.00011047,2]
[347339531,1735707032590,-500.0,0.00011047,2]
[347339532,1735707032600,-653.31647294,0.00011047,2]
[347339533,1735707032687,-1000.0,0.00011047,2]
[347339540,1735707032746,-45.99352706,0.00011047,2]
[347339542,1735707032756,-500.0,0.00011047,2]
[347339544,1735707032765,-500.0,0.00011047,2]
[347339545,1735707032774,-500.0,0.00011047,2]
[347339546,1735707032785,-500.0,0.00011047,2]
[347339547,1735707032794,-1044.65,0.00011047,2]
[347339548,1735707032803,-500.0,0.00011047,2]
[347339549,1735707032812,-607.79,0.00011047,2]
[347339550,1735707032821,-519.85952233,0.00011047,2]
[347339551,1735707032831,-714.21,0.00011047,2]
[347339552,1735707032839,-500.0,0.00011047,2]
[347339553,1735707032849,-695.04513959,0.00011047,2]
[347339554,1735707032860,-184.72486041,0.00011047,2]
[347339555,1735707032869,-500.0,0.00011047,2]
[347339556,1735707032879,-500.0,0.00011047,2]
[347339557,1735707032889,-1382.11,0.00011047,2]
[347339558,1735707032900,-634.67,0.00011047,2]
[347339559,1735707032909,-999.68,0.00011047,2]
[347339560,1735707032919,-1054.28317231,0.00011047,2]
[347339562,1735707038043,-432.46682769,0.00011047,2]
[347339563,1735707038053,-535.09,0.00011047,2]
[347339564,1735707038061,-174.56041274,0.00011047,2]
[347339565,1735707038151,-486.26958726,0.00011047,2]
[347339566,1735707038161,-3918.16,0.00011047,2]
[347339567,1735707038171,-500.0,0.00011047,2]
[347339568,1735707038181,-1540.97,0.00011047,2]
[347339569,1735707038190,-389.06290507,0.00011047,2]
[347339570,1735707038316,-1265.30709493,0.00011047,2]
[347339571,1735707038326,-676.61,0.00011047,2]
[347339572,1735707038335,-667.9,0.00011047,2]
[347339573,1735707038344,-500.0,0.00011047,2]
[347339574,1735707038354,-638.69,0.00011047,2]
[347339575,1735707038363,-786.94,0.00011047,2]
[347339576,1735707038378,-2042.21,0.00011047,2]
[347339577,1735707038388,-500.0,0.00011047,2]
[347339578,1735707038397,-500.0,0.00011047,2]
[347339579,1735707038407,-500.0,0.00011047,2]
[347339580,1735707038418,-1050.17,0.00011047,2]
[347339581,1735707038427,-500.0,0.00011047,2]
[347339582,1735707038437,-500.0,0.00011047,2]
[347339583,1735707038447,-1404.37,0.00011047,2]
[347339584,1735707038456,-500.0,0.00011047,2]
[347339585,1735707038466,-500.0,0.00011047,2]
[347339586,1735707038476,-500.0,0.00011047,2]
[347339588,1735707038485,-500.0,0.00011047,2]
[347339589,1735707038495,-500.0,0.00011047,2]
[347339590,1735707038504,-500.0,0.00011047,2]
[347339591,1735707038514,-1100.95,0.00011047,2]
[347339592,1735707038523,-500.0,0.00011047,2]
[347339593,1735707038533,-1063.76,0.00011047,2]
[347339594,1735707038543,-8960.34,0.00011047,2]
[347339595,1735707038553,-500.0,0.00011047,2]
[347339596,1735707038562,-504.21,0.00011047,2]
[347339597,1735707038571,-4523.3,0.00011047,2]
[347339598,1735707038581,-909.81,0.00011047,2]
[347339599,1735707038592,-500.0,0.00011047,2]
[347339600,1735707038601,-612.43,0.00011047,2]
[347339601,1735707038610,-948.3,0.00011047,2]
[347339602,1735707038620,-27674.84,0.00011047,2]
[347339603,1735707038629,-500.0,0.00011047,2]
[347339604,1735707038639,-2343.87,0.00011047,2]
[347339605,1735707038648,-500.0,0.00011047,2]
[347339606,1735707038658,-1368.98,0.00011047,2]
[347339607,1735707038668,-505.98439396,0.00011047,2]
[347339608,1735707038677,-500.0,0.00011047,2]
[347339609,1735707038687,-1250.26,0.00011047,2]
[347339610,1735707038696,-2981.49,0.00011047,2]
[347339611,1735707038707,-500.0,0.00011047,2]
[347339612,1735707038716,-500.0,0.00011047,2]
[347339613,1735707038726,-702.9,0.00011047,2]
[347339614,1735707038736,-582.16,0.00011047,2]
[347339615,1735707038745,-500.0,0.00011047,2]
[347339616,1735707038754,-713.49,0.00011047,2]
[347339617,1735707038763,-500.0,0.00011047,2]
[347339618,1735707038773,-5292.71,0.00011047,2]
[347339619,1735707038782,-578.04,0.00011047,2]
[347339620,1735707038791,-500.0,0.00011047,2]
[347339621,1735707038800,-500.0,0.00011047,2]
[347339622,1735707038810,-500.0,0.00011047,2]
[347339623,1735707038819,-2350.78,0.00011047,2]
[347339624,1735707038828,-767.09,0.00011047,2]
[347339625,1735707038838,-1469.5,0.00011047,2]
[347339626,1735707038847,-597.2,0.00011047,2]
[347339627,1735707038857,-5052.26,0.00011047,2]
[347339628,1735707038866,-690.93,0.00011047,2]
[347339629,1735707038876,-716.21,0.00011047,2]
[347339630,1735707038885,-500.0,0.00011047,2]
[347339631,1735707038895,-309.43900721,0.00011047,2]
[347339632,1735707038904,-500.0,0.00011047,2]
[347339633,1735707038913,-1925.79,0.00011047,2]
[347339634,1735707038922,-549.66,0.00011047,2]
[347339635,1735707038932,-13755.45,0.00011047,2]
[347339636,1735707038942,-500.0,0.00011047,2]
[347339637,1735707038953,-603.54,0.00011047,2]
[347339638,1735707038963,-17130.77,0.00011047,2]
[347339639,1735707038972,-500.0,0.00011047,2]
[347339640,1735707038981,-898.96,0.00011047,2]
[347339641,1735707038990,-6521.04,0.00011047,2]
[347339642,1735707038999,-500.0,0.00011047,2]
[347339643,1735707039009,-6739.24374847,0.00011047,2]
[347339644,1735707041193,-293.67374436,0.00011047,2]
[347339648,1735707043171,-4550.78250717,0.00011047,2]
[347339649,1735707043181,-1141.78,0.00011047,2]
[347339650,1735707043191,-500.0,0.00011047,2]
[347339651,1735707043200,-500.0,0.00011047,2]
[347339652,1735707043210,-2321.78,0.00011047,2]
[347339653,1735707043222,-345.00749283,0.00011047,2]
[347339654,1735707043247,-154.99250717,0.00011047,2]
[347339655,1735707043257,-2422.31717693,0.00011047,2]
[347339656,1735707043386,-308.46156063,0.00011047,2]
[347339657,1735707043399,-1405.03126244,0.00011047,2]
[347339658,1735707043415,-708.74,0.00011047,2]
[347339659,1735707043425,-1234.68,0.00011047,2]
[347339660,1735707043434,-1653.67,0.00011047,2]
[347339661,1735707043445,-567.98971744,0.00011047,2]
[347339662,1735707043455,-1244.05,0.00011047,2]
[347339663,1735707043467,-11296.62,0.00011047,2]
[347339664,1735707043477,-500.0,0.00011047,2]
[347339665,1735707043487,-3294.86,0.00011047,2]
[347339666,1735707043497,-500.0,0.00011047,2]
[347339667,1735707043507,-500.0,0.00011047,2]
[347339668,1735707043518,-500.0,0.00011047,2]
[347339669,1735707043527,-2650.98045602,0.00011047,2]
[347339670,1735707043540,-4543.94695777,0.00011047,2]
[347339671,1735707043581,-580.50258621,0.00011047,2]
[347339672,1735707043591,-107.99741247,0.00011047,2]
[347339673,1735707046346,-620.14258753,0.00011047,2]
[347339674,1735707046356,-2250.81,0.00011047,2]
[347339675,1735707046365,-1581.91,0.00011047,2]
[347339676,1735707046379,-511.72,0.00011047,2]
[347339677,1735707046388,-1587.1,0.00011047,2]
[347339678,1735707046398,-500.0,0.00011047,2]
[347339679,1735707046407,-732.77,0.00011047,2]
[347339680,1735707046417,-4294.67,0.00011047,2]
[347339681,1735707046428,-1769.85,0.00011047,2]
[347339682,1735707046437,-1027.1,0.00011047,2]
[347339683,1735707046448,-500.0,0.00011047,2]
[347339684,1735707046457,-3029.05,0.00011047,2]
[347339685,1735707046467,-152.19,0.00011048,2]
[347339686,1735707046477,-165.757,0.00011048,2]
[347339687,1735707046487,-4023.825,0.00011048,2]
[347339688,1735707046496,-500.0,0.00011048,2]
[347339689,1735707046506,-500.0,0.00011048,2]
[347339690,1735707046515,-500.0,0.00011048,2]
[347339691,1735707046524,-500.0,0.00011048,2]
[347339692,1735707046534,-500.0,0.00011048,2]
[347339693,1735707046543,-500.0,0.00011048,2]
[347339694,1735707046553,-500.0,0.00011048,2]
[347339695,1735707046562,-1130.2,0.00011048,2]
[347339696,1735707046571,-500.0,0.00011048,2]
[347339697,1735707046581,-500.0,0.00011048,2]
[347339698,1735707046591,-500.0,0.00011048,2]
[347339699,1735707046600,-2687.16,0.00011048,2]
[347339700,1735707046609,-500.0,0.00011048,2]
[347339701,1735707046619,-500.0,0.00011048,2]
[347339702,1735707046628,-500.0,0.00011048,2]
[347339703,1735707046638,-500.0,0.00011048,2]
[347339704,1735707046647,-1159.32,0.00011048,2]
[347339705,1735707046657,-500.0,0.00011048,2]
[347339706,1735707046666,-3021.55,0.00011048,2]
[347339707,1735707046676,-500.0,0.00011048,2]
[347339708,1735707046685,-500.0,0.00011048,2]
[347339709,1735707046694,-500.0,0.00011048,2]
[347339710,1735707046704,-1871.67,0.00011048,2]
[347339711,1735707046714,-720.71,0.00011048,2]
[347339712,1735707046723,-500.0,0.00011048,2]
[347339713,1735707046733,-4724.44,0.00011048,2]
[347339714,1735707046742,-151.50183477,0.00011048,2]
[347339715,1735707046752,-762.74,0.00011048,2]